[Event "Sardinia World Festival-A 2024"]
[Site "Orosei"]
[Date "2024.05.01"]
[Round "6.42"]
[White "Morros Faura, Ricard"]
[Black "Derakhshani, Borna"]
[Result "0-1"]
[ECO "B15"]
[WhiteElo "2177"]
[BlackElo "2355"]
[Annotator "TA"]
[PlyCount "68"]
[EventDate "2024.04.26"]
[EventType "swiss"]
[EventCountry "ITA"]
[SourceTitle "playchess.com"]
[Source "ChessBase"]
[SourceQuality "1"]
[TimeControl "40/5400+30:1800+30"]

{[%evp 14,68,22,24,47,21,37,36,27,42,47,0,2,0,7,-11,4,6,29,25,60,51,63,45,112,-8,29,24,14,0,347,365,364,357,560,526,851,342,351,358,355,274,255,252,268,279,257,267,316,320,385,-399,-387,-361,-318,-646,-643]} 1. e4 {[%emt 0:00:10]} c6 {[%emt 0:00:04]} 2. d4 {[%emt 0:00:12]} d5 {[%emt 0:00:04]} 3. Nd2 {[%emt 0:02:21]} dxe4 {[%emt 0:01:02]} 4. Nxe4 {[%emt 0:00:32]} Nf6 {[%emt 0:00:04]} 5. Nxf6+ {[%emt 0:00:20]} exf6 {[%emt 0:00:04]} 6. c3 {[%emt 0:01:33]} Bd6 {[%emt 0:00:06]} 7. Bd3 {[%emt 0:00:11]} O-O {[%emt 0:00:05]} 8. Qc2 {[%emt 0:00:38]} Re8+ {[%emt 0:00:10]} 9. Ne2 {[%emt 0:00:18]} h5 {[%emt 0:00:05]} 10. O-O {[%emt 0:13:00]} h4 {[%emt 0:00:04] White is slightly better.} 11. h3 {[%emt 0:12:46]} Nd7 {[%emt 0:00:05]} 12. f4 {[%emt 0:01:42]} (12. Bd2 $14) 12... c5 {[%emt 0:46:38]} 13. Kh1 {[%emt 0:18:18]} a6 {[%emt 0:24:10][%cal Of6f5]} 14. dxc5 {[%emt 0:21:16]} Bxc5 {[%emt 0:03:11][%cal Of6f5]} 15. b4 {[%emt 0:01:42]} Ba7 {[%emt 0:00:33]} 16. c4 {[%emt 0:03:59]} Nb8 {[%emt 0:11:48]} 17. Bb2 {[%emt 0:01:23] Threatens to win with Rad1.} Nc6 {[%emt 0:10:47]} 18. Rad1 {[%emt 0:01:08] aiming for Bh7+.} Qc7 {[%emt 0:00:00]} (18... Qe7 $14) 19. Qc3 {[%emt 0:03:31]} ({White should try} 19. Nc3 $16 Ne7 (19... Nxb4 20. Qa4 $16) 20. Ne4) 19... Bd7 {[%emt 0:00:00]} 20. Qe1 $36 {[%emt 0:02:04][%mdl 2048] White has good play.} Ne7 $1 {[%emt 0:00:00]} 21. Qxh4 {[%emt 0:08:33] Threatening mate with Qh7+.} Nf5 $2 {[%emt 0:00:00][%mdl 8192]} (21... Ng6 $11 22. Bxg6 fxg6) 22. Bxf5 $1 $18 {[%emt 0:01:44]} Bxf5 {[%emt 0:00:00]} 23. Ng3 {[%emt 0:00:56]} Bg6 {[%emt 0:00:00]} (23... Bc2 24. Rd5 Bg6 (24... Qxc4 25. Rh5) 25. f5 $18) (23... Be4 {keeps fighting.} 24. Qg4 Qxc4 25. Bxf6 Bg6) 24. f5 {[%emt 0:00:34] Hoping for Bxf6.} Bh7 {[%emt 0:00:00]} 25. Rf4 {[%emt 0:02:09]} (25. Nh5 $142 {[%cal Oh5f6] Intending Nxf6+! and mate.} Bb8 26. Rf4 Qxf4 27. Nxf4 Bxf5 28. Nd5) 25... Rad8 {[%emt 0:00:54]} 26. Rdf1 {[%emt 0:01:41]} Be3 {[%emt 0:01:35]} 27. Rg4 {[%emt 0:00:45]} Bg5 {[%emt 0:00:01]} 28. Rxg5 {[%emt 0:00:31]} fxg5 {[%emt 0:00:01]} 29. Qxg5 {[%emt 0:00:05][%csl Gb2][%cal Rg5g7]} f6 {[%emt 0:00:00]} 30. Bxf6 {[%emt 0:00:51]} Rd7 {[%emt 0:00:00]} 31. Nh5 {[%emt 0:00:35]} Rf8 {[%emt 0:00:53][%cal Od7f7] [#]} 32. Ba1 $4 {[%emt 0:00:19][%mdl 8192] [#]} (32. Re1 $1 $18) 32... Rxf5 $1 $19 {[%emt 0:02:26][%cal Rf5f1][%mdl 512]} 33. Nf6+ {[%emt 0:00:36]} Kf7 {[%emt 0:00:44][%cal Rf5f1]} 34. Qc1 {[%emt 0:00:34]} (34. Qxf5 Bxf5 35. Nxd7 Qxd7 36. g4) 34... gxf6 {[%emt 0:00:17] Never resign too early!   Weighted Error Value: White=0.68/Black=0.47.  Loses game:     	---       	Black=1      Missed win:     	White=1     	---        Mistake:       	White=4     	Black=2      Inaccurate:     	White=1     	Black=3      OK:         	White=5     	Black=4      Best:        	White=3     	Black=5      Strong:       	White=1     	Black=1      Brilliant:      	---       	Black=1} 0-1